bitfinex/quotes_SOLUSD_20241123
["timestamp","ask_amount","ask_price","bid_price","bid_amount"]
[1732392465682,7.71844768,254.08,254.01,27.71844768]
[1732392466171,3.9351,254.12,254.02,7.71844768]
[1732392466364,7.71844768,254.09,254.03,20.0]
[1732392467277,15.5371,254.13,254.03,20.0]
[1732392467278,7.71844768,254.1,254.03,20.0]
[1732392467672,7.71844768,254.1,254.03,27.71844768]
[1732392467983,7.71844768,254.1,253.94,7.77534397]
[1732392467984,23.25554768,254.13,254.06,7.71844768]
[1732392468573,6.2323,254.16,254.08,7.71844768]
[1732392468761,7.71844768,254.18,254.11,7.71844768]
[1732392468964,6.2323,254.22,254.13,7.71844768]
[1732392469163,31.59577136,254.26,254.14,7.71844768]
[1732392469164,7.71844768,254.21,254.14,7.71844768]
[1732392469381,19.4701,254.26,254.14,20.0]
[1732392469382,7.71844768,254.18,254.14,20.0]
[1732392469966,7.71844768,254.17,254.11,20.0]
[1732392470260,7.71844768,254.14,254.07,7.71844768]
[1732392470566,7.71844768,254.15,254.08,27.71844768]
[1732392471462,7.71844768,254.16,254.09,7.71844768]
[1732392471664,7.71844768,254.16,254.1,20.0]
[1732392471886,3.9335,254.23,254.1,20.0]
[1732392471887,7.71844768,254.15,254.1,20.0]
[1732392472095,7.71844768,254.13,254.1,20.0]
[1732392472270,7.71844768,254.13,254.05,27.71844768]
[1732392473292,7.71844768,254.14,254.08,20.0]
[1732392474176,7.71844768,254.13,254.06,7.71844768]
[1732392474376,7.71844768,254.14,254.06,7.71844768]
[1732392474985,7.71844768,254.11,253.99,15.3338]
[1732392475170,7.71844768,254.11,254.03,7.71844768]
[1732392476475,7.71844768,254.11,254.04,20.0]
[1732392478276,7.71844768,254.09,253.99,15.3338]
[1732392478475,7.71844768,254.09,254.02,7.71844768]
[1732392479481,7.71844768,254.09,254.03,20.0]
[1732392481594,7.71844768,254.09,253.95,20.0]
[1732392481782,7.71844768,254.07,253.93,16.244]
[1732392482094,7.71844768,254.07,253.98,7.71844768]
[1732392482482,7.71844768,254.07,254.0,7.71844768]
[1732392485372,3.9355,254.1,254.0,7.71844768]
[1732392485576,31.49533168,254.12,254.04,7.71844768]
[1732392487503,15.4768,254.13,254.07,7.71844768]
[1732392487796,23.19524768,254.13,254.06,7.71844768]
[1732392489201,7.71844768,254.11,254.04,7.71844768]
[1732392489504,23.776884,254.1,254.03,7.71844768]
[1732392490800,23.776884,254.09,254.03,7.71844768]
[1732392491103,23.776884,254.09,254.03,20.0]
[1732392491710,23.776884,254.09,254.03,7.71844768]
[1732392492606,7.71844768,254.12,254.05,7.71844768]
[1732392493605,7.71844768,254.11,254.04,7.71844768]
[1732392495296,7.71844768,254.08,253.94,20.0]
[1732392495498,7.71844768,254.08,254.02,20.0]
[1732392495700,7.71844768,254.07,254.02,20.0]
[1732392496008,9.52153317,254.11,253.98,7.71844768]
[1732392496009,31.49533168,254.06,253.98,7.71844768]
[1732392496209,7.71844768,254.05,253.98,7.71844768]
[1732392497416,23.776884,254.03,253.97,20.0]
[1732392497792,23.776884,254.03,253.96,7.71844768]
[1732392499917,23.776884,254.03,253.97,7.71844768]
[1732392502191,47.60523168,254.03,253.9,20.0]
[1732392502421,39.886784,254.03,253.97,7.71844768]
[1732392503321,47.60523168,254.03,253.9,20.0]
[1732392503527,39.886784,254.03,253.97,7.71844768]
[1732392503821,39.886784,254.03,253.97,7.21844768]
[1732392504524,23.776884,254.0,253.9,20.0]
[1732392504902,23.776884,254.0,253.95,7.71844768]
[1732392505201,31.49533168,254.01,253.93,7.71844768]
[1732392506033,23.776884,254.01,253.93,7.71844768]
[1732392506999,23.776884,254.01,253.95,7.71844768]
[1732392507601,23.776884,254.02,253.95,7.71844768]
[1732392510426,16.1099,254.03,253.97,7.71844768]
[1732392510629,16.1099,254.03,253.99,7.71844768]
[1732392510924,16.1099,254.03,253.98,7.71844768]
[1732392513107,16.1099,254.03,253.9,20.0]
[1732392513308,16.1099,254.03,253.97,7.71844768]
[1732392514133,23.776884,254.02,253.9,20.0]
[1732392514336,12.33713568,254.09,254.01,7.71844768]
[1732392514631,22.16513568,254.1,254.03,7.71844768]
[1732392514839,6.06283568,254.12,254.07,7.71844768]
[1732392515041,16.1023,254.16,254.08,7.71844768]
[1732392515042,22.16513568,254.16,254.08,7.71844768]
[1732392515211,16.1023,254.16,254.03,20.0]
[1732392515409,7.71844768,254.14,254.03,20.0]
[1732392515717,7.71844768,254.12,254.06,20.0]
[1732392516029,7.71844768,254.12,254.04,20.0]
[1732392516418,23.776884,254.11,254.04,27.71844768]
[1732392516729,23.776884,254.09,254.03,20.0]
[1732392516931,7.71844768,254.08,254.03,20.0]
[1732392517518,7.71844768,254.08,253.97,20.0]
[1732392517715,7.71844768,254.08,254.01,20.0]
[1732392517911,23.776884,254.09,254.03,20.0]
[1732392518845,23.776884,254.1,254.04,7.71844768]
[1732392519220,6.5677,254.11,254.04,7.71844768]
[1732392520516,31.49533168,254.1,254.03,20.0]
[1732392520722,31.49533168,254.1,254.02,7.71844768]
[1732392521131,31.49533168,254.1,254.03,20.0]
[1732392523651,6.5677,254.11,254.04,7.71844768]
[1732392523823,7.71844768,254.12,254.04,7.71844768]
[1732392525149,7.71844768,254.12,254.04,20.0]
[1732392525448,23.776884,254.14,254.05,7.71844768]
[1732392525745,23.776884,254.12,254.05,7.71844768]
[1732392527140,7.71844768,254.11,254.03,7.71844768]
[1732392527546,7.71844768,254.11,253.9,6.0368]
[1732392527547,7.71844768,254.04,253.89,15.0]
[1732392527750,23.776884,254.08,253.96,7.71844768]
[1732392527751,23.776884,254.03,253.96,7.71844768]
[1732392528048,7.71844768,254.04,253.96,7.71844768]
[1732392528924,7.71844768,254.04,253.97,20.0]
[1732392533649,7.71844768,254.04,253.96,7.71844768]
[1732392536256,7.71844768,254.04,253.97,7.71844768]
[1732392537055,7.71844768,254.04,253.89,15.0]
[1732392537260,22.0069,253.99,253.94,20.0]
[1732392537743,15.927,253.99,253.94,20.0]
[1732392541064,6.12392039,254.04,253.96,7.71844768]
[1732392541273,13.84236807,254.04,253.96,7.71844768]
[1732392541445,23.776884,254.03,253.96,7.71844768]
[1732392542068,31.49533168,254.03,253.9,20.0]
[1732392542364,31.49533168,254.03,253.96,20.0]
[1732392542564,31.49533168,254.03,253.95,7.71844768]
[1732392542743,31.49533168,254.03,253.9,20.0]
[1732392542943,31.49533168,254.03,253.95,7.71844768]
[1732392543160,31.49533168,254.03,253.96,20.0]
[1732392544651,7.71844768,254.04,253.97,7.71844768]
[1732392544849,6.06283568,254.1,254.01,7.71844768]
[1732392545061,7.71844768,254.08,254.01,7.71844768]
[1732392545262,7.71844768,254.09,254.01,7.71844768]
[1732392545548,28.03203568,254.11,254.02,7.71844768]
[1732392545762,29.68764768,254.11,254.04,7.71844768]
[1732392545948,29.68764768,254.11,254.03,7.71844768]
[1732392545949,7.71844768,254.1,254.03,7.71844768]
[1732392546371,15.508,254.11,254.04,27.71844768]
[1732392546566,15.508,254.11,254.05,7.71844768]
[1732392546976,7.71844768,254.12,254.05,7.71844768]
[1732392547155,7.71844768,254.11,254.04,7.71844768]
[1732392547355,7.71844768,254.09,253.95,20.0]
[1732392547577,9.99753568,254.15,254.02,20.0]
[1732392547578,7.71844768,254.08,254.02,20.0]
[1732392548777,7.71844768,254.09,254.03,20.0]
[1732392549576,23.776884,254.11,254.03,20.0]
[1732392549884,6.06283568,254.14,254.05,7.71844768]
[1732392550061,6.06283568,254.16,254.06,7.71844768]
[1732392550256,7.71844768,254.11,254.04,7.71844768]
[1732392550453,7.71844768,254.14,254.08,20.0]
[1732392550651,21.9692,254.17,254.08,27.71844768]
[1732392550878,23.22644768,254.17,254.1,7.71844768]
[1732392551181,15.508,254.17,254.11,27.71844768]
[1732392551372,7.71844768,254.15,254.11,20.0]
[1732392551566,7.71844768,254.15,254.1,20.0]
[1732392551751,7.71844768,254.15,254.08,7.71844768]
[1732392551952,7.71844768,254.14,254.09,20.0]
[1732392552162,7.71844768,254.11,254.09,20.0]
[1732392552478,7.71844768,254.11,254.04,20.0]
[1732392552651,7.71844768,254.11,254.06,20.0]
[1732392553366,7.71844768,254.12,254.06,7.71844768]
[1732392553573,7.71844768,254.12,254.07,20.0]
[1732392554582,7.71844768,254.14,254.07,27.71844768]
[1732392554875,23.776884,254.16,254.07,27.71844768]
[1732392555075,7.71844768,254.14,254.07,27.71844768]
[1732392555382,7.71844768,254.13,254.07,20.0]
[1732392555981,23.776884,254.16,254.07,20.0]
[1732392556280,15.508,254.17,254.11,7.71844768]
[1732392556665,16.6423,254.21,254.04,20.0]
[1732392556864,7.71844768,254.19,254.12,7.71844768]
[1732392557075,16.6423,254.21,254.12,20.0]
[1732392557076,7.71844768,254.18,254.12,20.0]
[1732392557669,16.6423,254.21,254.13,7.71844768]
[1732392557974,12.52567556,254.23,254.16,27.71844768]
[1732392558178,6.05847556,254.26,254.2,7.71844768]
[1732392558380,6.05847556,254.28,254.22,7.71844768]
[1732392558573,13.77692324,254.29,254.23,7.71844768]
[1732392558760,7.71844768,254.3,254.24,20.0]
[1732392558956,6.05847556,254.32,254.24,20.0]
[1732392559152,7.71844768,254.28,254.24,20.0]
[1732392559384,7.71844768,254.28,254.22,20.0]
[1732392560765,7.71844768,254.26,254.21,20.0]
[1732392561096,7.71844768,254.23,254.14,15.5792]
[1732392561379,7.71844768,254.23,254.13,6.3765]
[1732392561380,7.71844768,254.19,254.12,7.71844768]
[1732392561585,7.71844768,254.18,254.11,7.71844768]
[1732392561789,7.71844768,254.17,254.08,15.5792]
[1732392562083,7.71844768,254.17,254.1,7.71844768]
[1732392562888,7.71844768,254.16,254.08,23.29764768]
[1732392563060,7.71844768,254.14,254.02,15.5792]
[1732392563399,23.776884,254.21,254.04,7.71844768]
[1732392563572,7.71844768,254.13,254.06,7.71844768]
[1732392564179,23.776884,254.21,254.06,7.71844768]
[1732392564487,7.71844768,254.12,254.05,7.71844768]
[1732392564685,12.06230159,254.12,254.05,12.06230159]
[1732392564877,12.06230159,254.12,254.05,20.0]
[1732392565683,12.06230159,254.11,254.04,20.0]
[1732392565985,12.06230159,254.09,254.01,12.06230159]
[1732392566286,12.06230159,254.07,253.99,12.06230159]
[1732392566792,12.06230159,254.09,254.01,12.06230159]
[1732392566992,12.06230159,254.09,254.02,20.0]
[1732392567168,16.6423,254.08,253.99,12.06230159]
[1732392567367,12.06230159,254.07,253.99,12.06230159]
[1732392569472,12.06230159,254.07,254.0,20.0]
[1732392570091,23.776884,254.06,254.0,20.0]
[1732392572592,23.776884,254.06,253.99,12.06230159]
[1732392574568,23.776884,254.06,253.99,20.0]
[1732392574569,35.83918559,254.06,253.99,20.0]
[1732392575292,23.776884,254.06,253.99,12.06230159]
[1732392581901,23.776884,254.06,254.0,12.06230159]
[1732392582199,23.776884,254.06,254.01,12.06230159]
[1732392582399,35.83918559,254.07,254.0,12.06230159]
[1732392582599,23.776884,254.07,254.0,12.06230159]
[1732392583094,35.83918559,254.07,254.0,12.06230159]
[1732392584491,35.83918559,254.07,253.9,20.0]
[1732392584492,23.776884,254.07,254.01,12.06230159]
[1732392584685,16.6423,254.08,254.02,7.72148768]
[1732392584882,16.6423,254.08,254.03,7.72148768]
[1732392585096,16.6423,254.08,254.02,7.72148768]
[1732392586706,16.6423,254.08,254.01,20.0]
[1732392586707,7.72148768,254.07,254.01,20.0]
[1732392587203,7.72148768,254.06,254.01,20.0]
[1732392587401,23.776884,254.07,254.01,7.72148768]
[1732392588287,23.776884,254.07,254.0,7.72148768]
[1732392588487,23.776884,254.07,254.01,20.0]
[1732392588692,31.49837168,254.07,254.01,20.0]
[1732392589178,31.49837168,254.07,254.0,19.5]
[1732392591280,31.49837168,254.07,253.99,7.72148768]
[1732392593579,31.49837168,254.07,253.92,7.74844294]
[1732392593792,31.49837168,254.07,253.99,7.72148768]
[1732392594393,31.49837168,254.07,254.0,20.0]
[1732392598105,23.776884,254.07,254.0,20.0]
[1732392601710,23.776884,254.07,254.01,7.72148768]
[1732392603192,16.6423,254.08,254.03,7.72148768]
[1732392603393,6.5574,254.1,254.05,7.72148768]
[1732392603608,15.9459,254.14,254.07,7.72148768]
[1732392603609,23.66738768,254.14,254.07,7.72148768]
[1732392603787,15.9459,254.14,254.09,7.72148768]
[1732392603987,15.9459,254.14,254.1,7.72148768]
[1732392604194,7.72148768,254.18,254.11,7.72148768]
[1732392604402,22.00437556,254.2,254.12,7.72148768]
[1732392604403,23.66738768,254.2,254.12,7.72148768]
[1732392604904,23.66738768,254.2,254.14,7.72148768]
[1732392604905,15.9459,254.2,254.14,7.72148768]
[1732392605109,7.72148768,254.23,254.16,7.72148768]
[1732392605315,7.72148768,254.22,254.16,7.72148768]
[1732392605926,7.72148768,254.19,254.14,20.0]
[1732392606090,7.72148768,254.17,254.1,7.72148768]
[1732392606418,7.72148768,254.16,254.1,20.0]
[1732392607109,7.72148768,254.15,254.1,20.0]
[1732392607419,23.776884,254.15,254.14,7.72148768]
[1732392607588,13.77996324,254.25,254.14,7.72148768]
[1732392607798,7.72148768,254.24,254.17,7.72148768]
[1732392607989,15.9459,254.26,254.22,7.72148768]
[1732392608186,15.9459,254.32,254.23,7.72148768]
[1732392608411,15.9459,254.32,254.29,7.72148768]
[1732392608618,19.1859,254.4,254.3,7.72148768]
[1732392608790,19.1859,254.4,254.26,20.0]
[1732392608791,7.72148768,254.38,254.31,7.72148768]
[1732392609099,7.72148768,254.39,254.32,7.72148768]
[1732392609299,7.72148768,254.38,254.31,7.72148768]
[1732392609608,7.72148768,254.39,254.31,7.72148768]
[1732392609816,15.9459,254.4,254.34,27.72148768]
[1732392610111,7.72148768,254.41,254.34,27.72148768]
[1732392610499,7.72148768,254.39,254.33,20.0]
[1732392610691,31.6485844,254.47,254.21,6.5981]
[1732392610692,12.03746477,254.37,254.3,12.03746477]
[1732392610897,12.03746477,254.36,254.31,20.0]
[1732392611098,12.03746477,254.35,254.31,20.0]
[1732392611515,12.03746477,254.35,254.29,12.03746477]
[1732392611516,12.03746477,254.35,254.3,20.0]
[1732392612013,12.03746477,254.34,254.3,20.0]
[1732392612216,12.03746477,254.41,254.27,12.03746477]
[1732392612217,12.03746477,254.35,254.27,12.03746477]
[1732392612386,23.776884,254.34,254.28,12.03746477]
[1732392613025,23.776884,254.34,254.29,12.03746477]
[1732392613319,12.03746477,254.41,254.33,12.03746477]
[1732392613491,12.03746477,254.45,254.38,12.03746477]
[1732392613693,33.69434917,254.47,254.4,12.03746477]
[1732392614189,12.03746477,254.46,254.39,12.03746477]
[1732392615005,12.03746477,254.44,254.38,12.03746477]
[1732392615219,23.776884,254.41,254.38,20.0]
[1732392615407,35.81434877,254.41,254.38,20.0]
[1732392615929,23.776884,254.41,254.36,12.03746477]
[1732392616101,23.776884,254.42,254.37,20.0]
[1732392616718,23.776884,254.42,254.4,12.03746477]
[1732392616926,33.69434917,254.47,254.4,12.03746477]
[1732392617249,12.03746477,254.46,254.4,12.03746477]
[1732392617535,12.03746477,254.46,254.39,12.03746477]
[1732392618036,35.81434877,254.44,254.39,20.0]
[1732392618422,23.776884,254.42,254.38,20.0]
[1732392619144,12.03746477,254.39,254.32,12.03746477]
[1732392619441,23.776884,254.38,254.33,20.0]
[1732392619839,23.776884,254.38,254.33,32.03746477]
[1732392620136,23.776884,254.39,254.33,12.03746477]
[1732392620646,23.776884,254.39,254.23,17.67595205]
[1732392620647,12.03746477,254.37,254.24,20.0]
[1732392620817,12.03746477,254.36,254.29,12.03746477]
[1732392621218,12.03746477,254.34,254.28,20.0]
[1732392621419,35.81434877,254.35,254.28,32.03746477]
[1732392622117,35.81434877,254.33,254.26,12.03746477]
[1732392622312,12.03746477,254.34,254.27,12.03746477]
[1732392622523,23.776884,254.36,254.3,12.03746477]
[1732392622831,23.776884,254.36,254.23,15.3808]
[1732392622832,12.03746477,254.4,254.33,12.03746477]
[1732392623037,12.03746477,254.43,254.36,12.03746477]
[1732392624037,12.03746477,254.45,254.39,12.03746477]
[1732392624538,12.03746477,254.46,254.39,12.03746477]
[1732392625141,12.03746477,254.43,254.37,12.03746477]
[1732392625540,23.776884,254.42,254.36,12.03746477]
[1732392625723,23.776884,254.42,254.35,20.0]
[1732392625724,12.03746477,254.41,254.35,20.0]
[1732392625924,12.03746477,254.39,254.35,20.0]
[1732392626221,23.776884,254.35,254.28,12.03746477]
[1732392626427,23.776884,254.34,254.29,12.03746477]
[1732392626830,23.776884,254.35,254.29,12.03746477]
[1732392627044,35.81434877,254.33,254.27,12.03746477]
[1732392627217,12.03746477,254.33,254.27,12.03746477]
[1732392627836,12.03746477,254.33,254.26,12.03746477]
[1732392628036,23.776884,254.35,254.27,12.03746477]
[1732392628348,23.776884,254.33,254.27,12.03746477]
[1732392629216,23.776884,254.33,254.28,20.0]
[1732392630036,12.03746477,254.34,254.28,20.0]
[1732392631823,23.776884,254.33,254.28,20.0]
[1732392632019,12.03746477,254.35,254.28,32.03746477]
[1732392632212,23.776884,254.34,254.28,32.03746477]
[1732392632437,35.81434877,254.35,254.28,12.03746477]
[1732392632742,35.81434877,254.35,254.29,20.0]
[1732392632940,12.03746477,254.34,254.29,20.0]
[1732392633172,12.03746477,254.3,254.24,20.0]
[1732392633450,23.776884,254.27,254.2,12.03746477]
[1732392633643,23.776884,254.27,254.17,16.1184]
[1732392633644,12.03746477,254.25,254.18,12.03746477]
[1732392633948,12.03746477,254.26,254.18,12.03746477]
[1732392634248,3.9321,254.32,254.24,12.03746477]
[1732392634249,12.03746477,254.32,254.24,12.03746477]
[1732392634424,16.5324,254.36,254.14,10.0]
[1732392634425,23.776884,254.31,254.25,12.03746477]
[1732392634632,23.776884,254.32,254.25,12.03746477]
[1732392635125,12.03746477,254.29,254.24,20.0]
[1732392635342,23.776884,254.28,254.24,20.0]
[1732392635642,12.03746477,254.26,254.24,20.0]
[1732392635827,12.03746477,254.26,254.2,20.0]
[1732392636033,12.03746477,254.27,254.2,12.03746477]
[1732392636332,16.5324,254.36,254.22,12.03746477]
[1732392636333,12.03746477,254.29,254.22,12.03746477]
[1732392636639,12.03746477,254.3,254.23,12.03746477]
[1732392636840,23.776884,254.29,254.24,20.0]
[1732392637031,23.776884,254.3,254.24,20.0]
[1732392637928,35.81434877,254.3,254.24,20.0]
[1732392640928,12.03746477,254.32,254.24,32.03746477]
[1732392641126,23.776884,254.31,254.25,12.03746477]
[1732392641545,23.776884,254.32,254.25,12.03746477]
[1732392642841,23.776884,254.32,254.27,12.03746477]
[1732392643146,12.03746477,254.37,254.29,12.03746477]
[1732392643319,23.776884,254.36,254.29,12.03746477]
[1732392645036,35.81434877,254.34,254.27,12.03746477]
[1732392645327,23.776884,254.36,254.26,20.0]
[1732392645328,12.03746477,254.31,254.26,20.0]
[1732392645738,12.03746477,254.3,254.23,12.03746477]
[1732392646250,12.03746477,254.3,254.24,20.0]
[1732392647258,12.03746477,254.3,254.23,12.03746477]
[1732392648028,12.03746477,254.32,254.24,12.03746477]
[1732392648227,23.776884,254.31,254.24,12.03746477]
[1732392648833,23.776884,254.31,254.25,12.03746477]
[1732392649254,23.776884,254.31,254.24,12.03746477]
[1732392650343,12.03746477,254.27,254.22,20.0]
[1732392650532,12.03746477,254.26,254.22,20.0]
[1732392651053,12.03746477,254.23,254.16,12.03746477]
[1732392651354,12.03746477,254.23,254.17,20.0]
[1732392652030,12.03746477,254.22,254.17,20.0]
[1732392652232,12.03746477,254.2,254.12,12.03746477]
[1732392652444,12.03746477,254.17,254.11,12.03746477]
[1732392652751,12.03746477,254.17,254.09,12.03746477]
[1732392653053,16.3586,254.22,254.08,12.03746477]
[1732392653054,12.03746477,254.16,254.08,12.03746477]
[1732392653475,12.03746477,254.13,254.05,12.03746477]
[1732392653758,12.03746477,254.11,254.04,12.03746477]
[1732392653928,12.03746477,254.09,254.02,12.03746477]
[1732392654131,12.03746477,254.09,253.94,5.33977303]
[1732392654332,23.776884,254.08,254.0,12.03746477]
[1732392654553,23.776884,254.08,254.02,12.03746477]
[1732392654761,23.776884,254.08,253.93,6.6079]
[1732392654962,23.776884,254.08,254.0,12.03746477]
[1732392656064,23.776884,254.08,254.04,12.03746477]
[1732392656277,23.776884,254.08,253.94,20.0]
[1732392656570,15.1284,254.2,254.06,12.03746477]
[1732392656768,12.03746477,254.17,254.08,12.03746477]
[1732392657076,12.03746477,254.15,254.08,12.03746477]
[1732392657442,12.03746477,254.15,254.06,12.03746477]
[1732392657844,23.776884,254.14,254.06,12.03746477]
[1732392658864,23.776884,254.14,253.94,40.0]
[1732392659162,23.776884,254.14,254.07,12.03746477]
[1732392661946,12.03746477,254.11,254.03,12.03746477]
[1732392662168,23.776884,254.1,254.03,12.03746477]
[1732392662346,23.776884,254.1,254.06,12.03746477]
[1732392662545,12.03746477,254.14,254.07,12.03746477]
[1732392662742,23.776884,254.13,254.07,12.03746477]
[1732392663893,15.1284,254.2,254.08,12.03746477]
[1732392663894,23.776884,254.15,254.08,12.03746477]
[1732392664053,12.03746477,254.14,254.07,12.03746477]
[1732392664255,23.776884,254.13,254.07,12.03746477]
[1732392664879,23.776884,254.13,254.06,12.03746477]
[1732392665952,23.776884,254.09,254.03,12.03746477]
[1732392666371,23.776884,254.09,254.01,12.03746477]
[1732392666578,23.776884,254.07,254.01,12.03746477]
[1732392666880,23.776884,254.05,254.0,12.03746477]
[1732392667179,23.776884,254.07,254.0,12.03746477]
[1732392667882,23.776884,254.07,254.02,12.03746477]
[1732392668064,23.776884,254.07,254.04,12.03746477]
[1732392668775,23.776884,254.07,254.03,12.03746477]
[1732392669354,23.776884,254.07,254.01,12.03746477]
[1732392669554,23.776884,254.07,254.02,12.03746477]
[1732392672083,23.776884,254.05,253.99,20.0]
[1732392673271,23.776884,254.05,253.98,12.03746477]
[1732392676578,23.776884,254.01,253.94,12.03746477]
[1732392676756,23.776884,254.01,253.96,12.03746477]
[1732392676956,23.776884,254.03,253.96,12.03746477]
[1732392678070,23.776884,254.05,253.98,12.03746477]
[1732392683787,23.776884,254.05,253.99,12.03746477]
[1732392683958,23.776884,254.06,253.99,12.03746477]
[1732392684882,23.776884,254.06,253.89,27.03746477]
[1732392685085,15.1284,254.08,254.03,12.03746477]
[1732392686289,23.776884,254.07,254.03,12.03746477]
[1732392686785,23.776884,254.07,254.01,12.03746477]
[1732392686983,23.776884,254.07,254.02,20.0]
[1732392687283,23.776884,254.07,254.02,32.03746477]
[1732392689588,23.776884,254.07,254.02,20.0]
[1732392690305,23.776884,254.07,254.01,20.0]
[1732392691294,23.776884,254.07,254.01,32.03746477]
[1732392692085,23.776884,254.07,254.01,20.0]
[1732392692291,12.03746477,254.06,254.01,20.0]
[1732392692479,23.776884,254.05,254.01,20.0]
[1732392692966,23.776884,254.05,253.98,12.03746477]
[1732392694078,23.776884,254.05,253.99,20.0]
[1732392695270,23.776884,254.05,254.0,12.03746477]
[1732392695472,23.776884,254.07,254.0,12.03746477]
[1732392696077,15.5002,254.14,254.06,12.03746477]
[1732392696300,15.5002,254.14,254.08,12.03746477]
[1732392696796,15.5002,254.14,254.09,12.03746477]
[1732392696971,15.5002,254.14,254.08,12.03746477]
[1732392698198,23.776884,254.13,254.08,12.03746477]
[1732392699202,23.776884,254.13,254.07,12.03746477]
[1732392701811,23.776884,254.13,254.08,12.03746477]
[1732392702190,23.776884,254.13,254.09,12.03746477]
[1732392702393,12.03746477,254.19,254.12,12.03746477]
[1732392702692,15.5002,254.2,254.14,12.03746477]
[1732392702874,15.5002,254.2,254.02,48.55636477]
[1732392702875,12.03746477,254.22,254.15,12.03746477]
[1732392703078,15.5002,254.26,254.2,12.03746477]
[1732392703296,27.53766477,254.26,254.2,20.0]
[1732392703500,12.03746477,254.24,254.2,20.0]
[1732392703678,12.03746477,254.22,254.2,20.0]
[1732392703879,12.03746477,254.22,254.16,20.0]
[1732392704114,12.03746477,254.19,254.15,20.0]
[1732392704277,12.03746477,254.17,254.11,20.0]
[1732392705407,23.776884,254.16,254.11,20.0]
[1732392705611,23.776884,254.16,254.1,20.0]
[1732392706199,23.776884,254.16,254.1,32.03746477]
[1732392707009,23.776884,254.17,254.12,20.0]
[1732392707498,23.776884,254.18,254.12,32.03746477]
[1732392707708,15.5002,254.26,254.15,12.03746477]
[1732392707890,12.03746477,254.2,254.13,12.03746477]
[1732392708081,15.5002,254.26,254.14,20.0]
[1732392708082,12.03746477,254.18,254.14,20.0]
[1732392708288,12.03746477,254.19,254.14,20.0]
[1732392708593,12.03746477,254.19,254.12,20.0]
[1732392708914,12.03746477,254.19,254.12,12.03746477]
[1732392709121,23.776884,254.18,254.13,20.0]
[1732392709418,12.03746477,254.2,254.13,20.0]
[1732392709419,23.776884,254.19,254.13,20.0]
[1732392709716,35.81434877,254.19,254.13,20.0]
[1732392709913,35.81434877,254.19,254.12,20.0]
[1732392710609,23.776884,254.16,254.1,20.0]
[1732392711210,12.03746477,254.17,254.1,20.0]
[1732392712907,12.03746477,254.18,254.12,20.0]
[1732392713619,12.03746477,254.17,254.11,20.0]
[1732392713910,19.4332,254.26,254.11,20.0]
[1732392713911,12.03746477,254.15,254.11,20.0]
[1732392714288,12.03746477,254.15,254.09,20.0]
[1732392715108,12.03746477,254.15,254.08,12.03746477]
[1732392715109,12.03746477,254.13,254.06,12.03746477]
[1732392715327,12.03746477,254.14,254.06,12.03746477]
[1732392715508,12.03746477,254.12,254.04,32.03746477]
[1732392716327,15.6204,254.15,253.96,15.1037]
[1732392716328,12.03746477,254.1,253.96,15.1037]
[1732392716611,23.776884,254.14,254.05,12.03746477]
[1732392716822,12.03746477,254.12,254.05,12.03746477]
[1732392717113,23.776884,254.11,254.03,12.03746477]
[1732392717818,23.776884,254.11,254.04,20.0]
[1732392719400,23.776884,254.13,254.06,20.0]
[1732392724527,12.03746477,254.12,254.06,20.0]
[1732392727424,12.03746477,254.1,254.04,20.0]
[1732392728195,12.03746477,254.1,254.02,20.0]
[1732392728395,12.03746477,254.08,254.02,20.0]
[1732392728631,12.03746477,254.08,253.99,12.03746477]
[1732392729202,12.03746477,254.06,253.98,12.03746477]
[1732392729396,12.03746477,254.04,253.98,12.03746477]
[1732392729722,12.03746477,254.05,253.98,12.03746477]
[1732392729904,12.03746477,254.06,253.98,12.03746477]
[1732392730524,12.03746477,254.06,253.99,20.0]
[1732392732629,7.72386953,254.07,253.99,7.72386953]
[1732392732798,23.776884,254.06,254.0,20.0]
[1732392735129,23.776884,254.06,253.94,7.8454407]
[1732392735130,7.72386953,254.05,253.98,7.72386953]
[1732392735346,7.72386953,254.05,253.95,20.0]
[1732392735347,23.776884,254.04,253.95,20.0]
[1732392735526,23.776884,254.02,253.95,20.0]
[1732392735699,23.776884,254.02,253.95,27.72386953]